[Event "Amsterdam Chess Open 2024"]
[Site "Amsterdam"]
[Date "2024.11.02"]
[Round "3.20"]
[White "Waersegers, Brent"]
[Black "Krylov, Philippe"]
[Result "0-1"]
[ECO "B12"]
[WhiteElo "1835"]
[BlackElo "1950"]
[Annotator "RC"]
[PlyCount "132"]
[EventDate "2024.10.31"]
[EventType "swiss"]
[EventCountry "NED"]
[SourceTitle "playchess.com"]
[Source "ChessBase"]
[SourceQuality "1"]
[TimeControl "5400+30"]

1. e4 {[%emt 0:00:03]} c6 {[%emt 0:00:13]} 2. d4 {[%emt 0:00:07]} d5 {[%emt 0:00:08]} 3. e5 {[%emt 0:00:08]} Bf5 {[%emt 0:00:05]} 4. h4 {[%emt 0:00:17]} h5 {[%emt 0:00:09]} 5. Bd3 {[%emt 0:00:25]} Bxd3 {[%emt 0:00:08]} 6. Qxd3 {[%emt 0:00:07]} Qa5+ {[%emt 0:00:04]} 7. Nc3 {[%emt 0:00:10]} e6 {[%emt 0:00:19]} 8. Nge2 {[%emt 0:02:25]} Ne7 {[%emt 0:08:20]} 9. Bg5 {[%emt 0:02:34]} Nf5 {[%emt 0:00:43]} 10. Ng3 {[%emt 0:00:29]} Ne7 {[%emt 0:13:12]} 11. O-O {[%emt 0:09:24]} Nd7 {[%emt 0:06:54]} 12. b4 {[%emt 0:03:23]} Qc7 {[%emt 0:01:09]} 13. Qf3 {[%emt 0:10:49]} g6 {[%emt 0:02:22]} 14. a4 {[%emt 0:03:00]} Bh6 {[%emt 0:05:45]} 15. Bxh6 {[%emt 0:01:35]} Rxh6 {[%emt 0:00:07]} 16. a5 {[%emt 0:05:38]} Nf5 {[%emt 0:05:55]} 17. Qf4 {[%emt 0:00:49]} Rh8 {[%emt 0:01:32]} 18. Nxf5 {[%emt 0:00:41]} exf5 {[%emt 0:05:03]} 19. Qg5 {[%emt 0:00:53]} Nf8 {[%emt 0:00:50]} 20. b5 {[%emt 0:05:04]} Qd8 {[%emt 0:03:38]} 21. Qxd8+ {[%emt 0:01:08]} Kxd8 {[%emt 0:04:53]} 22. bxc6 {[%emt 0:01:05]} bxc6 {[%emt 0:00:01]} 23. a6 {[%emt 0:01:11]} Ne6 {[%emt 0:00:14]} 24. Ne2 {[%emt 0:03:19]} Rb8 {[%emt 0:03:06]} 25. Rfb1 {[%emt 0:01:49]} Kc7 {[%emt 0:02:10]} 26. c3 {[%emt 0:02:44]} Rxb1+ {[%emt 0:01:43]} 27. Rxb1 {[%emt 0:00:08]} Rb8 {[%emt 0:00:04]} 28. Ra1 {[%emt 0:00:49]} Rb2 {[%emt 0:01:18]} 29. Kf1 {[%emt 0:00:52]} Kb6 {[%emt 0:00:15]} 30. g3 {[%emt 0:00:49]} Rb5 {[%emt 0:07:27]} 31. Ke1 {[%emt 0:10:54]} Ra5 {[%emt 0:00:48]} 32. Rxa5 {[%emt 0:01:20]} Kxa5 {[%emt 0:00:06]} 33. c4 {[%emt 0:00:09]} dxc4 {[%emt 0:01:07]} 34. Kd2 {[%emt 0:00:06]} Kxa6 {[%emt 0:00:04]} 35. Kc3 {[%emt 0:00:03]} Kb5 {[%emt 0:00:08]} 36. Ng1 {[%emt 0:00:48]} a5 {[%emt 0:00:20]} 37. Nf3 {[%emt 0:00:07]} Nc7 {[%emt 0:04:18]} 38. Ng5 {[%emt 0:01:03]} Nd5+ {[%emt 0:00:07]} 39. Kc2 {[%emt 0:00:07]} f6 {[%emt 0:00:43]} 40. Ne6 {[%emt 0:00:35]} a4 {[%emt 0:00:58]} 41. f4 {[%emt 0:01:35]} a3 {[%emt 0:01:43]} 42. Nc5 {[%emt 0:01:06]} fxe5 {[%emt 0:00:06]} 43. fxe5 {[%emt 0:00:08]} Nb4+ {[%emt 0:03:35]} 44. Kb1 {[%emt 0:01:20]} c3 {[%emt 0:01:56]} 45. e6 {[%emt 0:00:26]} c2+ {[%emt 0:00:21]} 46. Kc1 {[%emt 0:00:04]} a2 {[%emt 0:00:05]} 47. Nb3 {[%emt 0:00:09]} Kc4 {[%emt 0:01:06]} 48. Kb2 {[%emt 0:00:27]} Nd5 {[%emt 0:02:25]} 49. Kxc2 {[%emt 0:00:24]} a1=Q {[%emt 0:00:27]} 50. Nxa1 {[%emt 0:00:06]} Kxd4 {[%emt 0:00:05]} 51. Nb3+ {[%emt 0:00:23]} Ke5 {[%emt 0:00:07]} 52. Kd3 {[%emt 0:00:31]} Kxe6 {[%emt 0:00:31]} 53. Kd4 {[%emt 0:00:09]} Kd6 {[%emt 0:00:31]} 54. Nc5 {[%emt 0:00:41]} Nf6 {[%emt 0:02:05]} 55. Nd3 {[%emt 0:00:19]} Nd7 {[%emt 0:02:07]} 56. Nf4 {[%emt 0:01:56]} c5+ {[%emt 0:00:17]} 57. Kc3 {[%emt 0:00:09]} Ne5 {[%emt 0:00:08]} 58. Kc2 {[%emt 0:00:23]} c4 {[%emt 0:00:30]} 59. Kc3 {[%emt 0:00:06]} Kc5 {[%emt 0:00:04]} 60. Ne6+ {[%emt 0:00:51]} Kd5 {[%emt 0:00:19]} 61. Ng5 {[%emt 0:00:23]} Nd7 {[%emt 0:03:27]} 62. Nf7 {[%emt 0:01:30]} Ke4 {[%emt 0:01:25]} 63. Ng5+ {[%emt 0:00:05]} Ke3 {[%emt 0:01:21]} 64. Kxc4 {[%emt 0:00:04]} Kf2 {[%emt 0:00:06]} 65. Kd3 {[%emt 0:00:16]} Kxg3 {[%emt 0:00:25]} 66. Ke2 {[%emt 0:00:04]} Kxh4 {[%emt 0:00:36]} 0-1

[Event "Amsterdam Chess Open 2024"]
[Site "Amsterdam"]
[Date "2024.11.02"]
[Round "3.21"]
[White "Shakya, Amrit"]
[Black "Haerden, Mathijs"]
[Result "1-0"]
[ECO "B15"]
[WhiteElo "1756"]
[BlackElo "1802"]
[Annotator "NA RC"]
[PlyCount "61"]
[EventDate "2024.10.31"]
[EventType "swiss"]
[EventCountry "NED"]
[SourceTitle "playchess.com"]
[Source "ChessBase"]
[SourceQuality "1"]
[TimeControl "5400+30"]

1. e4 {[%emt 0:13:04]} c6 {[%emt 0:00:03]} 2. d4 {[%emt 0:00:09]} d5 {[%emt 0:00:03]} 3. Nc3 {[%emt 0:00:10]} dxe4 {[%emt 0:00:05]} 4. Nxe4 {[%emt 0:00:05]} Nf6 {[%emt 0:00:05]} 5. Nxf6+ {[%emt 0:00:13]} exf6 {[%emt 0:00:03]} 6. Be3 {[%emt 0:03:24]} Bd6 {[%emt 0:00:41]} 7. Bd3 {[%emt 0:01:58]} O-O {[%emt 0:01:51]} 8. Qh5 {[%emt 0:02:08]} g6 {[%emt 0:01:32]} 9. Qf3 {[%emt 0:01:03]} Be6 {[%emt 0:02:49]} 10. g4 {[%emt 0:01:14]} Re8 {[%emt 0:04:27]} 11. c4 {[%emt 0:13:43]} Bb4+ {[%emt 0:01:31]} 12. Kf1 {[%emt 0:00:14]} b5 {[%emt 0:02:40]} 13. b3 {[%emt 0:04:18]} bxc4 {[%emt 0:08:31]} 14. bxc4 {[%emt 0:00:04]} Bc3 {[%emt 0:00:25]} 15. Rd1 {[%emt 0:00:03]} Na6 {[%emt 0:20:56]} 16. Ne2 {[%emt 0:01:09]} Ba5 {[%emt 0:07:24]} 17. Nf4 {[%emt 0:00:21]} Rb8 {[%emt 0:03:51]} 18. Nxe6 {[%emt 0:02:46]} Rxe6 {[%emt 0:02:39]} 19. d5 {[%emt 0:09:44]} Rxe3 {[%emt 0:16:56]} 20. fxe3 {[%emt 0:06:15]} cxd5 {[%emt 0:04:20]} 21. Be2 {[%emt 0:09:31]} Nb4 {[%emt 0:06:37]} 22. a3 {[%emt 0:04:36]} Nc2 {[%emt 0:06:14]} 23. Rxd5 {[%emt 0:00:15]} Qb6 {[%emt 0:01:08]} 24. Rb5 {[%emt 0:13:16]} Qc7 {[%emt 0:03:16]} 25. Rxb8+ {[%emt 0:00:07]} Qxb8 {[%emt 0:00:05]} 26. Qe4 {[%emt 0:08:13]} Nxe3+ {[%emt 0:02:31]} 27. Qxe3 {[%emt 0:01:45]} Qb1+ {[%emt 0:00:03]} 28. Kg2 {[%emt 0:00:05]} Qb7+ {[%emt 0:00:12]} 29. Qf3 {[%emt 0:00:59]} Qb8 {[%emt 0:00:48]} 30. Rf1 {[%emt 0:00:24]} Bc3 {[%emt 0:00:18]} 31. Qxc3 {[%emt 0:00:12]} 1-0

[Event "Amsterdam Chess Open 2024"]
[Site "Amsterdam"]
[Date "2024.11.02"]
[Round "3.22"]
[White "Speckamp, Jeroen"]
[Black "Stiehler, Oskar"]
[Result "0-1"]
[ECO "B01"]
[WhiteElo "1778"]
[BlackElo "1784"]
[Annotator "NA RC"]
[PlyCount "71"]
[EventDate "2024.10.31"]
[EventType "swiss"]
[EventCountry "NED"]
[SourceTitle "playchess.com"]
[Source "ChessBase"]
[SourceQuality "1"]
[TimeControl "5400+30"]

1. e4 {[%emt 0:00:11]} d5 {[%emt 0:00:32]} 2. exd5 {[%emt 0:00:39]} Nf6 {[%emt 0:00:13]} 3. Nf3 {[%emt 0:01:00]} Nxd5 {[%emt 0:00:22]} 4. d4 {[%emt 0:01:27]} g6 {[%emt 0:00:31]} 5. Be2 {[%emt 0:05:28]} Bg7 {[%emt 0:00:51]} 6. O-O {[%emt 0:03:11]} O-O {[%emt 0:00:40]} 7. c4 {[%emt 0:01:06]} Nb6 {[%emt 0:01:39]} 8. Nc3 {[%emt 0:03:18]} Nc6 {[%emt 0:01:25]} 9. Be3 {[%emt 0:03:59]} Bg4 {[%emt 0:01:24]} 10. d5 {[%emt 0:03:51]} Bxf3 {[%emt 0:09:52]} 11. gxf3 {[%emt 0:07:12]} Ne5 {[%emt 0:06:36]} 12. c5 {[%emt 0:07:40]} Nbc4 {[%emt 0:03:37]} 13. Qb3 {[%emt 0:01:03]} Nxe3 {[%emt 0:07:51]} 14. fxe3 {[%emt 0:00:21]} Qd7 {[%emt 0:08:15]} 15. Rad1 {[%emt 0:17:20]} Rfd8 {[%emt 0:02:47]} 16. e4 {[%emt 0:09:19]} Qc8 {[%emt 0:10:11]} 17. Kg2 {[%emt 0:01:33]} c6 {[%emt 0:03:55]} 18. d6 {[%emt 0:05:27]} exd6 {[%emt 0:00:44]} 19. cxd6 {[%emt 0:02:40]} Bf8 {[%emt 0:02:27]} 20. Rd2 {[%emt 0:06:08]} Rxd6 {[%emt 0:03:09]} 21. Rfd1 {[%emt 0:00:42]} Rxd2 {[%emt 0:01:51]} 22. Rxd2 {[%emt 0:00:05]} b6 {[%emt 0:11:38]} 23. Kg3 {[%emt 0:07:22]} Nd7 {[%emt 0:04:11]} 24. f4 {[%emt 0:04:12]} Nc5 {[%emt 0:01:47]} 25. Qd1 {[%emt 0:00:14]} Qc7 {[%emt 0:02:23]} 26. e5 {[%emt 0:02:22]} a5 {[%emt 0:02:24]} 27. a3 {[%emt 0:01:04]} a4 {[%emt 0:01:53]} 28. Rd4 {[%emt 0:03:16]} b5 {[%emt 0:00:54]} 29. Bf3 {[%emt 0:00:27]} Be7 {[%emt 0:01:43]} 30. Nxb5 {[%emt 0:00:19]} Qb6 {[%emt 0:02:04]} 31. Nc3 {[%emt 0:00:59]} Qxb2 {[%emt 0:01:36]} 32. Nxa4 {[%emt 0:00:19]} Qxa3 {[%emt 0:00:54]} 33. Nxc5 {[%emt 0:00:37]} Qxc5 {[%emt 0:00:51]} 34. Ra4 {[%emt 0:01:52]} Rd8 {[%emt 0:01:29]} 35. Qe2 {[%emt 0:00:31]} Qb5 {[%emt 0:02:35]} 36. Qxb5 {[%emt 0:01:16]} 0-1

[Event "Amsterdam Chess Open 2024"]
[Site "Amsterdam"]
[Date "2024.11.02"]
[Round "3.24"]
[White "Verhoeven, Lars"]
[Black "Lars Nobbe"]
[Result "0-1"]
[ECO "A22"]
[WhiteElo "1761"]
[BlackElo "1772"]
[Annotator "NA RC"]
[PlyCount "88"]
[EventDate "2024.10.31"]
[EventType "swiss"]
[EventCountry "NED"]
[SourceTitle "playchess.com"]
[Source "ChessBase"]
[SourceQuality "1"]
[TimeControl "5400+30"]

1. c4 {[%emt 0:00:03]} e5 {[%emt 0:00:06]} 2. Nc3 {[%emt 0:00:05]} Nf6 {[%emt 0:00:39]} 3. g3 {[%emt 0:00:10]} Bb4 {[%emt 0:03:32]} 4. e4 {[%emt 0:00:14]} O-O {[%emt 0:10:29]} 5. f3 {[%emt 0:00:39]} Nc6 {[%emt 0:02:28]} 6. Nh3 {[%emt 0:01:33]} d6 {[%emt 0:05:23]} 7. Nf2 {[%emt 0:00:23]} Be6 {[%emt 0:05:58]} 8. a3 {[%emt 0:01:41]} Bc5 {[%emt 0:03:57]} 9. b4 {[%emt 0:01:25]} Bd4 {[%emt 0:05:39]} 10. Bb2 {[%emt 0:00:38]} Nd7 {[%emt 0:03:08]} 11. Be2 {[%emt 0:12:18]} f5 {[%emt 0:03:00]} 12. d3 {[%emt 0:00:41]} Qg5 {[%emt 0:05:53]} 13. Qc2 {[%emt 0:04:53]} f4 {[%emt 0:03:09]} 14. g4 {[%emt 0:13:36]} Qh4 {[%emt 0:06:09]} 15. Ncd1 {[%emt 0:00:39]} Bxb2 {[%emt 0:02:42]} 16. Qxb2 {[%emt 0:00:47]} Nd4 {[%emt 0:00:44]} 17. Nc3 {[%emt 0:02:42]} c6 {[%emt 0:03:07]} 18. Na2 {[%emt 0:12:36]} Nf6 {[%emt 0:04:15]} 19. Nc1 {[%emt 0:03:26]} h5 {[%emt 0:03:26]} 20. gxh5 {[%emt 0:15:42]} Nxh5 {[%emt 0:04:06]} 21. Nb3 {[%emt 0:00:34]} Nxb3 {[%emt 0:01:22]} 22. Qxb3 {[%emt 0:00:05]} Rf6 {[%emt 0:03:12]} 23. Bf1 {[%emt 0:02:29]} Rh6 {[%emt 0:05:02]} 24. Qb2 {[%emt 0:01:57]} Nf6 {[%emt 0:02:27]} 25. O-O-O {[%emt 0:00:41]} d5 {[%emt 0:01:41]} 26. exd5 {[%emt 0:04:56]} cxd5 {[%emt 0:01:18]} 27. Qxe5 {[%emt 0:00:51]} Qxf2 {[%emt 0:04:29]} 28. Qxe6+ {[%emt 0:00:05]} Kh8 {[%emt 0:00:17]} 29. Qe2 {[%emt 0:00:15]} Qd4 {[%emt 0:00:33]} 30. Qd2 {[%emt 0:01:46]} Qa1+ {[%emt 0:00:51]} 31. Kc2 {[%emt 0:00:19]} Qa2+ {[%emt 0:00:07]} 32. Kc1 {[%emt 0:00:32]} Qa1+ {[%emt 0:00:27]} 33. Kc2 {[%emt 0:00:27]} Qxa3 {[%emt 0:01:44]} 34. Qc3 {[%emt 0:00:10]} Qa2+ {[%emt 0:00:17]} 35. Qb2 {[%emt 0:00:15]} Qa4+ {[%emt 0:00:10]} 36. Qb3 {[%emt 0:00:31]} Qc6 {[%emt 0:00:36]} 37. c5 {[%emt 0:00:43]} d4 {[%emt 0:00:33]} 38. Bg2 {[%emt 0:00:52]} Nd5 {[%emt 0:00:27]} 39. Kd2 {[%emt 0:01:42]} Ne3 {[%emt 0:00:31]} 40. Rdg1 {[%emt 0:00:25]} a5 {[%emt 0:01:20]} 41. Qb2 {[%emt 0:01:34]} axb4 {[%emt 0:00:35]} 42. Qxd4 {[%emt 0:00:39]} Ra2+ {[%emt 0:00:36]} 43. Kc1 {[%emt 0:00:45]} Rc2+ {[%emt 0:01:24]} 44. Kb1 {[%emt 0:00:17]} Qa4 {[%emt 0:00:57]} 0-1

[Event "Amsterdam Chess Open 2024"]
[Site "Amsterdam"]
[Date "2024.11.02"]
[Round "3.25"]
[White "Thomas Huften"]
[Black "Oostenbrug, Floris"]
[Result "0-1"]
[ECO "E01"]
[WhiteElo "1781"]
[BlackElo "1676"]
[Annotator "NA RC"]
[PlyCount "84"]
[EventDate "2024.10.31"]
[EventType "swiss"]
[EventCountry "NED"]
[SourceTitle "playchess.com"]
[Source "ChessBase"]
[SourceQuality "1"]
[TimeControl "5400+30"]

1. Nf3 {[%emt 0:00:06]} d5 {[%emt 0:00:18]} 2. d4 {[%emt 0:00:17]} Nf6 {[%emt 0:00:15]} 3. c4 {[%emt 0:00:14]} e6 {[%emt 0:01:26]} 4. g3 {[%emt 0:00:37]} c5 {[%emt 0:01:01]} 5. e3 {[%emt 0:06:28]} Nc6 {[%emt 0:01:31]} 6. Bg2 {[%emt 0:05:14]} Be7 {[%emt 0:03:43]} 7. Nc3 {[%emt 0:02:38]} O-O {[%emt 0:02:11]} 8. O-O {[%emt 0:00:53]} a6 {[%emt 0:02:25]} 9. cxd5 {[%emt 0:09:35]} exd5 {[%emt 0:02:19]} 10. a4 {[%emt 0:11:53]} Bg4 {[%emt 0:04:24]} 11. Qd2 {[%emt 0:10:55]} cxd4 {[%emt 0:05:55]} 12. Nxd4 {[%emt 0:05:40]} Qd7 {[%emt 0:08:07]} 13. Nde2 {[%emt 0:08:13]} Bb4 {[%emt 0:10:33]} 14. Nf4 {[%emt 0:03:57]} Bxc3 {[%emt 0:10:52]} 15. bxc3 {[%emt 0:01:39]} Rad8 {[%emt 0:03:16]} 16. h3 {[%emt 0:03:42]} Bf5 {[%emt 0:05:41]} 17. Rd1 {[%emt 0:03:29]} Be6 {[%emt 0:05:13]} 18. Ba3 {[%emt 0:03:08]} Rfe8 {[%emt 0:00:44]} 19. Bc5 {[%emt 0:01:01]} Ne5 {[%emt 0:01:32]} 20. Bd4 {[%emt 0:02:37]} Nc4 {[%emt 0:02:42]} 21. Qa2 {[%emt 0:01:39]} Qc6 {[%emt 0:07:20]} 22. Bf1 {[%emt 0:04:44]} Ne4 {[%emt 0:02:26]} 23. Rab1 {[%emt 0:02:51]} Ned6 {[%emt 0:03:59]} 24. a5 {[%emt 0:01:53]} Nb5 {[%emt 0:03:59]} 25. Rb4 {[%emt 0:01:37]} Nxd4 {[%emt 0:01:45]} 26. cxd4 {[%emt 0:00:52]} Rc8 {[%emt 0:02:24]} 27. Bxc4 {[%emt 0:01:15]} dxc4 {[%emt 0:00:24]} 28. Nxe6 {[%emt 0:00:23]} Qxe6 {[%emt 0:00:33]} 29. Rc1 {[%emt 0:01:09]} Qxh3 {[%emt 0:01:08]} 30. Rcxc4 {[%emt 0:00:29]} Rxc4 {[%emt 0:00:52]} 31. Qxc4 {[%emt 0:00:24]} Rc8 {[%emt 0:00:48]} 32. Qf1 {[%emt 0:00:42]} Qd7 {[%emt 0:01:30]} 33. Qg2 {[%emt 0:01:25]} Rc6 {[%emt 0:00:53]} 34. Qe4 {[%emt 0:00:45]} h6 {[%emt 0:00:51]} 35. Kh2 {[%emt 0:01:38]} Rc7 {[%emt 0:01:27]} 36. Qb1 {[%emt 0:01:38]} Qc6 {[%emt 0:00:57]} 37. Rb6 {[%emt 0:01:34]} Qf3 {[%emt 0:00:24]} 38. Qb2 {[%emt 0:00:28]} Rd7 {[%emt 0:00:44]} 39. Qc2 {[%emt 0:01:10]} Rd5 {[%emt 0:00:35]} 40. Qc8+ {[%emt 0:00:51]} Kh7 {[%emt 0:00:00]} 41. Qc2+ {[%emt 0:00:30]} g6 {[%emt 0:00:11]} 42. Rxg6 {[%emt 0:00:45]} Rh5+ {[%emt 0:00:25]} 0-1

[Event "Amsterdam Chess Open 2024"]
[Site "Amsterdam"]
[Date "2024.11.02"]
[Round "3.26"]
[White "Sam Ritchie"]
[Black "Marnix Reemst"]
[Result "1-0"]
[ECO "B12"]
[WhiteElo "1600"]
[BlackElo "1700"]
[Annotator "NA RC"]
[PlyCount "101"]
[EventDate "2024.10.31"]
[EventType "swiss"]
[EventCountry "NED"]
[SourceTitle "playchess.com"]
[Source "ChessBase"]
[SourceQuality "1"]
[TimeControl "5400+30"]

1. e4 {[%emt 0:00:03]} c6 {[%emt 0:00:13]} 2. d4 {[%emt 0:00:56]} d5 {[%emt 0:00:11]} 3. e5 {[%emt 0:01:04]} c5 {[%emt 0:00:23]} 4. c3 {[%emt 0:01:25]} Bf5 {[%emt 0:02:21]} 5. Nf3 {[%emt 0:05:08]} e6 {[%emt 0:01:03]} 6. Be2 {[%emt 0:10:07]} Nd7 {[%emt 0:04:16]} 7. O-O {[%emt 0:03:22]} Ne7 {[%emt 0:08:21]} 8. Bf4 {[%emt 0:19:50]} Nc6 {[%emt 0:04:54]} 9. Nbd2 {[%emt 0:05:54]} cxd4 {[%emt 0:11:18]} 10. cxd4 {[%emt 0:02:34]} Be7 {[%emt 0:03:09]} 11. Nb3 {[%emt 0:08:45]} O-O {[%emt 0:03:18]} 12. Rc1 {[%emt 0:03:45]} Rc8 {[%emt 0:13:54]} 13. Qd2 {[%emt 0:02:00]} f6 {[%emt 0:02:26]} 14. a3 {[%emt 0:11:55]} fxe5 {[%emt 0:09:42]} 15. dxe5 {[%emt 0:03:43]} Qe8 {[%emt 0:05:59]} 16. Nbd4 {[%emt 0:02:36]} Qg6 {[%emt 0:02:41]} 17. Nxc6 {[%emt 0:04:35]} bxc6 {[%emt 0:00:50]} 18. Rc3 {[%emt 0:02:52]} Bh3 {[%emt 0:02:11]} 19. Nh4 {[%emt 0:02:07]} Bxh4 {[%emt 0:00:53]} 20. Rxh3 {[%emt 0:00:00]} Rxf4 {[%emt 0:05:31]} 21. Qxf4 {[%emt 0:00:41]} Bg5 {[%emt 0:00:47]} 22. Qg3 {[%emt 0:01:35]} Nc5 {[%emt 0:02:52]} 23. Bd3 {[%emt 0:02:40]} Nxd3 {[%emt 0:01:19]} 24. Qxd3 {[%emt 0:00:04]} Qxd3 {[%emt 0:01:54]} 25. Rxd3 {[%emt 0:00:02]} c5 {[%emt 0:01:13]} 26. f4 {[%emt 0:00:35]} c4 {[%emt 0:00:34]} 27. Rd2 {[%emt 0:00:53]} Bd8 {[%emt 0:00:59]} 28. Rfd1 {[%emt 0:01:16]} Ba5 {[%emt 0:01:31]} 29. Rc2 {[%emt 0:00:32]} Rf8 {[%emt 0:03:56]} 30. g3 {[%emt 0:00:13]} Rb8 {[%emt 0:00:48]} 31. f5 {[%emt 0:01:40]} Kf7 {[%emt 0:00:22]} 32. g4 {[%emt 0:01:25]} Rb3 {[%emt 0:01:12]} 33. Re2 {[%emt 0:01:29]} d4 {[%emt 0:01:45]} 34. Kg2 {[%emt 0:00:45]} c3 {[%emt 0:03:00]} 35. bxc3 {[%emt 0:00:29]} dxc3 {[%emt 0:01:20]} 36. Rd7+ {[%emt 0:00:10]} Ke8 {[%emt 0:00:06]} 37. Rxa7 {[%emt 0:00:19]} Rb2 {[%emt 0:00:20]} 38. Rxb2 {[%emt 0:00:38]} cxb2 {[%emt 0:00:04]} 39. Rb7 {[%emt 0:00:07]} Bc3 {[%emt 0:00:15]} 40. fxe6 {[%emt 0:00:19]} Bxe5 {[%emt 0:00:22]} 41. h4 {[%emt 0:00:35]} b1=Q {[%emt 0:01:45]} 42. Rxb1 {[%emt 0:00:03]} Ke7 {[%emt 0:00:01]} 43. Re1 {[%emt 0:00:42]} Bc3 {[%emt 0:00:30]} 44. Re4 {[%emt 0:00:15]} Bd2 {[%emt 0:01:07]} 45. h5 {[%emt 0:00:10]} g6 {[%emt 0:00:04]} 46. hxg6 {[%emt 0:00:04]} hxg6 {[%emt 0:00:03]} 47. a4 {[%emt 0:00:09]} g5 {[%emt 0:00:22]} 48. Kf3 {[%emt 0:00:04]} Ba5 {[%emt 0:00:30]} 49. Ke2 {[%emt 0:00:04]} Bd8 {[%emt 0:00:06]} 50. Kd3 {[%emt 0:00:33]} Kf6 {[%emt 0:00:53]} 51. e7 {[%emt 0:00:14]} 1-0

[Event "Amsterdam Chess Open 2024"]
[Site "Amsterdam"]
[Date "2024.11.02"]
[Round "3.27"]
[White "Dries Bolkestein"]
[Black "Tobias Pilz"]
[Result "0-1"]
[ECO "D02"]
[WhiteElo "1550"]
[BlackElo "1700"]
[Annotator "NA RC"]
[PlyCount "126"]
[EventDate "2024.10.31"]
[EventType "swiss"]
[EventCountry "NED"]
[SourceTitle "playchess.com"]
[Source "ChessBase"]
[SourceQuality "1"]
[TimeControl "5400+30"]

1. d4 {[%emt 0:00:03]} Nf6 {[%emt 0:00:08]} 2. Bf4 {[%emt 0:00:07]} d5 {[%emt 0:00:14]} 3. Nf3 {[%emt 0:00:05]} e6 {[%emt 0:00:38]} 4. e3 {[%emt 0:00:06]} Nc6 {[%emt 0:00:14]} 5. c3 {[%emt 0:00:15]} Be7 {[%emt 0:00:49]} 6. Bd3 {[%emt 0:00:08]} h6 {[%emt 0:00:57]} 7. Nbd2 {[%emt 0:00:15]} Bd7 {[%emt 0:01:59]} 8. Ne5 {[%emt 0:00:21]} Bd6 {[%emt 0:03:06]} 9. Ndf3 {[%emt 0:01:24]} a6 {[%emt 0:01:15]} 10. Nxd7 {[%emt 0:01:30]} Nxd7 {[%emt 0:00:18]} 11. Bxd6 {[%emt 0:00:30]} cxd6 {[%emt 0:00:03]} 12. e4 {[%emt 0:00:28]} dxe4 {[%emt 0:03:10]} 13. Bxe4 {[%emt 0:00:09]} d5 {[%emt 0:00:15]} 14. Bd3 {[%emt 0:00:12]} b5 {[%emt 0:00:38]} 15. O-O {[%emt 0:00:19]} Qb6 {[%emt 0:01:24]} 16. a3 {[%emt 0:00:47]} O-O {[%emt 0:02:13]} 17. Re1 {[%emt 0:01:53]} Qc7 {[%emt 0:06:56]} 18. Qd2 {[%emt 0:00:25]} Na5 {[%emt 0:02:22]} 19. Bc2 {[%emt 0:01:32]} Nc4 {[%emt 0:01:42]} 20. Qd3 {[%emt 0:00:34]} Nf6 {[%emt 0:00:19]} 21. Rab1 {[%emt 0:00:32]} Rfe8 {[%emt 0:11:38]} 22. h3 {[%emt 0:01:19]} Rab8 {[%emt 0:04:45]} 23. Nd2 {[%emt 0:01:35]} Qf4 {[%emt 0:05:44]} 24. Nxc4 {[%emt 0:01:08]} bxc4 {[%emt 0:04:13]} 25. Qe3 {[%emt 0:00:25]} Qxe3 {[%emt 0:00:49]} 26. Rxe3 {[%emt 0:00:24]} Re7 {[%emt 0:04:25]} 27. Ba4 {[%emt 0:03:04]} Reb7 {[%emt 0:00:47]} 28. Re2 {[%emt 0:00:19]} Ne4 {[%emt 0:02:27]} 29. Rc2 {[%emt 0:00:17]} Kf8 {[%emt 0:01:23]} 30. f3 {[%emt 0:00:35]} Nd6 {[%emt 0:00:37]} 31. Kf2 {[%emt 0:00:30]} Ke7 {[%emt 0:00:43]} 32. Kg3 {[%emt 0:00:28]} Nc8 {[%emt 0:01:29]} 33. Re2 {[%emt 0:00:37]} Nb6 {[%emt 0:01:04]} 34. Bd1 {[%emt 0:00:29]} Nd7 {[%emt 0:00:17]} 35. Rd2 {[%emt 0:03:33]} Nf6 {[%emt 0:00:42]} 36. Ba4 {[%emt 0:02:30]} g5 {[%emt 0:01:20]} 37. Kf2 {[%emt 0:00:46]} Nh5 {[%emt 0:00:37]} 38. g3 {[%emt 0:00:15]} Ng7 {[%emt 0:01:04]} 39. b3 {[%emt 0:02:01]} cxb3 {[%emt 0:02:34]} 40. Rdb2 {[%emt 0:00:20]} Nf5 {[%emt 0:01:03]} 41. Rxb3 {[%emt 0:01:08]} Rxb3 {[%emt 0:01:46]} 42. Rxb3 {[%emt 0:00:07]} Rxb3 {[%emt 0:00:07]} 43. Bxb3 {[%emt 0:00:29]} Nd6 {[%emt 0:00:39]} 44. a4 {[%emt 0:00:21]} Kd7 {[%emt 0:00:28]} 45. Ke3 {[%emt 0:00:11]} Kc6 {[%emt 0:00:24]} 46. Kd3 {[%emt 0:00:34]} Kb6 {[%emt 0:04:11]} 47. g4 {[%emt 0:01:43]} Ka5 {[%emt 0:03:43]} 48. Kc2 {[%emt 0:02:37]} Nc8 {[%emt 0:00:12]} 49. Kb2 {[%emt 0:00:13]} Ne7 {[%emt 0:01:10]} 50. Bc2 {[%emt 0:00:26]} f5 {[%emt 0:02:39]} 51. Kb3 {[%emt 0:01:04]} Kb6 {[%emt 0:09:00]} 52. Kb4 {[%emt 0:00:19]} Nc6+ {[%emt 0:02:11]} 53. Kb3 {[%emt 0:00:52]} f4 {[%emt 0:00:58]} 54. Bg6 {[%emt 0:00:45]} Kc7 {[%emt 0:00:15]} 55. Be8 {[%emt 0:00:37]} Na5+ {[%emt 0:00:42]} 56. Kb4 {[%emt 0:00:47]} Nc4 {[%emt 0:00:14]} 57. Bg6 {[%emt 0:03:01]} Nd2 {[%emt 0:00:43]} 58. Ka5 {[%emt 0:00:24]} Nxf3 {[%emt 0:00:26]} 59. Kxa6 {[%emt 0:02:20]} Nd2 {[%emt 0:00:24]} 60. Kb5 {[%emt 0:00:41]} f3 {[%emt 0:00:12]} 61. a5 {[%emt 0:00:22]} Ne4 {[%emt 0:00:40]} 62. a6 {[%emt 0:00:30]} f2 {[%emt 0:00:09]} 63. h4 {[%emt 0:00:30]} f1=Q+ {[%emt 0:00:14]} 0-1